Cogmind - Beta 10.2 @@@ ROGUE MODE // 2021.12.23 @ 00:20:01 Player: Gaef Result: Destroyed by G-34 Mercenary with Small Laser Performance ------------- Evolutions (0) 0 Regions Visited (1) 200 Robots Destroyed (9) 45 Value Destroyed (147) 147 Prototype IDs (0) 0 Alien Tech Used (0) 0 Bonus (0) 0 TOTAL SCORE: 392 Bonus ------- None Cogmind --------- Core Integrity 0/250 Matter 224/300 Energy 100/100 System Corruption 0% Temperature Cool (6) Movement Core (150) Ox2 Location -10/Materials Parts ------- > --- POWER (1) -------- (None) > --- PROPULSION (2) --- (None) > --- UTILITY (2) ------ Medium Storage Unit > --- WEAPON (2) ------- Datajack > --- INVENTORY (8) ---- Light Treads Flight Unit Flight Unit Peak State ------------ > --- POWER ------------ Light Ion Engine > --- PROPULSION ------- Aluminum Leg Aluminum Leg > --- UTILITY ---------- Heat Sink Medium Storage Unit > --- WEAPON ----------- EM Pulse Gun Light Assault Rifle > --- INVENTORY -------- Flight Unit [Rating: 7] Favorites ----------- Power Light Ion Engine Engine Light Ion Engine Propulsion Aluminum Leg Leg Aluminum Leg Flight Unit Flight Unit Utility Medium Storage Unit Device Heat Sink Storage Medium Storage Unit Processor Targeting Computer Weapon Beam Cannon Energy Gun EM Pulse Gun Energy Cannon Beam Cannon Ballistic Gun Light Assault Rifle Special Melee Weapon Datajack Build | -11 -10 ------- Run | Scr Mat Slots Evolved . | . . Power . | . . Propulsion . | . . Utility . | . . Weapon . | . . Parts Attached 21 | 6 15 Power 2 | 1 1 Engine 2 | 1 1 Core . | . . Reactor . | . . Propulsion 9 | 2 7 Treads . | . . Leg 7 | 2 5 Wheel . | . . Hover . | . . Flight 2 | . 2 Utility 3 | 1 2 Device 1 | 1 . Storage 1 | . 1 Processor 1 | . 1 Hackware . | . . Protection . | . . Artifact . | . . Weapon 7 | 2 5 Energy Gun 3 | 2 1 Energy Cannon 2 | . 2 Ballistic Gun 1 | . 1 Ballistic Cannon . | . . Launcher . | . . Special Weapon . | . . Impact Weapon . | . . Slashing Weapon . | . . Piercing Weapon . | . . Special Melee Weapon 1 | . 1 Unidentified Prototypes . | . . Parts Lost 8 | . 8 Power 1 | . 1 Propulsion 2 | . 2 Utility 1 | . 1 Weapon 4 | . 4 Highest Loss Streak 6 | . 6 Average Slot Usage (%) 86 | . 86 Engine 13 | . 13 Leg 19 | . 19 Flight 4 | . 4 Device 3 | . 3 Storage 10 | . 10 Processor 7 | . 7 Energy Gun 5 | . 5 Energy Cannon 17 | . 17 Special Melee Weapon 1 | . 1 Naked Turns . | . . Heaviest Build 17 | 7 17 Greatest Support 20 | 20 20 Greatest Overweight (x) 5 | . 5 Average Overweight (x) . | . . Largest Inventory Capacity 8 | 4 8 Average Capacity 6 | 4 7 Most Carried 6 | 4 6 Average Carried 2 | 2 3 Final Capacity 8 | 4 8 Final Carried 3 | 3 3 Class Distribution -------------------- 100% | Mutant Dominant Class ---------------- Mutant | -10/Materials Resources | -11 -10 ----------- Run | Scr Mat Matter Collected 345 | 260 85 Remotely . | . . Salvage Created 244 | 38 206 Parts 20 | 3 17 Haulers Intercepted 1 | . 1 Recyclers Shooed . | . . Parts Field Recycled . | . . Retrieved Matter . | . . Parts Self-Destructed . | . . Prevented . | . . Kills | -11 -10 ------- Run | Scr Mat Combat Hostiles Destroyed 7 | 1 6 Guns 6 | 1 5 Cannons 1 | . 1 Classes Destroyed 4 | 1 3 Tunneler 1 | . 1 Hauler 1 | . 1 Swarmer 5 | . 5 Grunt 2 | 1 1 Best Kill Streak 4 | 1 4 Combat Bots Only 3 | 1 3 Max Kills in Single Turn 2 | 1 2 Gunslinging 1 | . 1 Exploded . | . . Melee . | . . Uniques/NPCs Destroyed . | . . Combat | -11 -10 -------- Run | Scr Mat Damage Taken 902 | 31 871 Core 259 | 31 228 Absorbed by Shields . | . . Core Remaining (%) 87 | 87 . Volleys Fired 30 | 3 27 Largest 2 | 2 2 Hottest 120 | 80 120 Shots Fired 52 | 6 46 Gun 32 | 6 26 Cannon 20 | . 20 Launcher . | . . Special . | . . Kinetic 5 | . 5 Thermal 33 | 3 30 Explosive . | . . Electromagnetic 14 | 3 11 Robot Hit Streak 5 | 3 5 Robot Miss Streak 3 | 1 3 Penetration Max . | . . Secondary Targets 1 | . 1 Max Gunslinging Chain 1 | . 1 Shots Hit Robots 31 | 4 27 Core Hits 11 | 1 10 Critical Hits . | . . Critical Kills . | . . Critical Parts Destroyed . | . . Melee Attacks . | . . Impact . | . . Slashing . | . . Piercing . | . . Sneak Attacks . | . . Combat Hostiles . | . . Follow-up Attacks . | . . Damage Inflicted 431 | 49 382 Guns 217 | 49 168 Cannons 172 | . 172 Explosions 42 | . 42 Melee . | . . Ramming . | . . Kinetic 24 | . 24 Thermal 290 | 10 280 Explosive . | . . Electromagnetic 117 | 39 78 Impact . | . . Slashing . | . . Piercing . | . . Highest Corruption . | . . Average Corruption . | . . Corruption Purged . | . . Overload Shots . | . . Overflow Damage 12 | . 12 Projectiles 12 | . 12 Explosions . | . . Melee . | . . Knockbacks . | . . Impact . | . . Kinetic . | . . Secondary . | . . Self-Inflicted Damage 13 | . 13 Shots 1 | . 1 Rammed 2 | . 2 Targets Rammed 2 | . 2 Kicked . | . . Crushed . | . . Highest Temperature 541 | 72 541 Average Temperature 206 | 43 235 Received Heat Transfer 333 | 18 315 Effects 10 | . 10 Energy Bleed 1 | . 1 Interference 1 | . 1 Matter Decay 1 | . 1 Short Circuit 4 | . 4 Damage (minor) 1 | . 1 Damage (major) 2 | . 2 Siege Activations . | . . Robots Corrupted . | . . Combat Hostiles . | . . Parts Fried 1 | 1 . Impact Corruptions . | . . Robots Melted . | . . Combat Hostiles . | . . Parts Melted . | . . Heat Transferred 595 | 25 570 Parts Sabotaged . | . . Parts Stolen . | . . Parts Stripped . | . . Power Chain Reactions 1 | . 1 Missiles Intercepted . | . . Alert | -11 -10 ------- Run | Scr Mat Peak Influence 177 | 20 177 Initial 13 | . 13 Average 86 | 2 114 Maximum Alert Level . | . . Low Security (%) 100 | 100 100 Level 1 . | . . Level 2 . | . . Level 3 . | . . Level 4 . | . . Level 5 . | . . High Security . | . . Max Security . | . . Squads Dispatched 1 | . 1 Investigation 1 | . 1 Extermination . | . . Reinforcement . | . . Assault . | . . Garrison . | . . Intercept . | . . Construction Impeded . | . . Haulers Reinforced . | . . Stealth | -11 -10 --------- Run | Scr Mat Distress Signals . | . . Communications Jammed . | . . Distress Signals . | . . Times Spotted 13 | 1 12 Peak Tracking Total 4 | 1 4 Tactical Retreats 1 | . 1 Traps | -11 -10 ------- Run | Scr Mat Traps Triggered . | . . Indirectly . | . . Trap Hack Attempts . | . . Triggered . | . . Disarmed . | . . Reprogrammed . | . . Reused . | . . Traps Extracted . | . . Installed . | . . Triggered . | . . Machines | -11 -10 ---------- Run | Scr Mat Machines Disabled 2 | . 2 Max in Single Turn 1 | . 1 Machines Sabotaged . | . . Garrisons Compromised . | . . Overloaded Fab Kills . | . . Fab Network Shutdowns . | . . Hacking | -11 -10 --------- Run | Scr Mat Machines Accessed 2 | . 2 Terminals . | . . Fabricators . | . . Repair Stations 1 | . 1 Recycling Units 1 | . 1 Scanalyzers . | . . Garrison Access . | . . Total Hacks 8 | . 8 Successful 7 | . 7 Failed 1 | . 1 Catastrophic . | . . Database Lockouts . | . . Manual . | . . Terminals . | . . Fabricators . | . . Repair Stations 5 | . 5 Recycling Units 3 | . 3 Scanalyzers . | . . Garrison Access . | . . Terminal Hacks . | . . Fabricator Hacks . | . . Repair Station Hacks 4 | . 4 Scan Component 2 | . 2 Repair 2 | . 2 Recycling Unit Hacks 3 | . 3 Recycle Component 2 | . 2 Report Inventory 1 | . 1 Scanalyzer . | . . Garrison Access Hacks . | . . Unauthorized Hacks . | . . Terminals . | . . Fabricators . | . . Repair Stations . | . . Recycling Units . | . . Scanalyzers . | . . Garrison Access . | . . Data Cores Recovered . | . . Used . | . . Hacking Detections 2 | . 2 Full Trace Events 2 | . 2 Feedback Events . | . . Feedback Blocked . | . . Robot Schematics Acquired . | . . Robots Built . | . . Matter . | . . Time . | . . Total Robot Build Rating . | . . Part Schematics Acquired . | . . Parts Built . | . . Matter . | . . Time . | . . Total Part Build Rating . | . . Parts Repaired 2 | . 2 Time 52 | . 52 Parts Recycled 2 | . 2 Recycled Matter . | . . Retrieved Matter . | . . Retrieved Components . | . . Parts Scanalyzed . | . . Part Schematics Acquired . | . . Parts Damaged . | . . Bothacking | -11 -10 ------------ Run | Scr Mat Used RIF Installer . | . . Robots Hacked . | . . Non-combat . | . . Combat . | . . Robot Hacks Applied . | . . Relay Couplers Released . | . . Robots Rewired . | . . Allies Hacked . | . . Hacks Repelled . | . . Allies | -11 -10 -------- Run | Scr Mat Total Allies . | . . Largest Group . | . . Highest-Rated Group . | . . Highest-Rated Ally . | . . Total Orders . | . . Ally Attacks . | . . Total Damage . | . . Kills . | . . Allies Corrupted . | . . Allies Melted . | . . Intel | -11 -10 ------- Run | Scr Mat Robot Analysis Total . | . . Derelict Logs Recovered . | . . Drone Launches . | . . Drone Recoveries . | . . Exploration | -11 -10 ------------- Run | Scr Mat Turns Passed 436 | 111 325 Spaces Moved 230 | 84 146 Core 41 | 26 15 Treads . | . . Legs 171 | 58 113 Wheels . | . . Hover . | . . Flight 18 | . 18 Fastest Speed 50 | 50 117 Average Speed 124 | 98 139 Slowest Speed 300 | 120 300 Overloaded Moves . | . . Propulsion Burnouts . | . . Robots Hopped . | . . Cave-ins Triggered . | . . Exploration Rate (%) 14 | 6 23 Regions Visited 1 Branch Regions . Pre-discovered Areas . | . . Known Exits Taken . | . . Unknown Exits Taken 1 | 1 . Scrap Searched . | . . Spaces Dug . | . . Terrain Destroyed 6 | . 6 Melee . | . . Projectile . | . . AOE 6 | . 6 Terrain Rammed . | . . Walls Destroyed . | . . Machines Disabled . | . . Actions | -11 -10 --------- Run | Scr Mat Total 329 | 106 223 Wait 12 | 5 7 Move 229 | 83 146 Hop . | . . Pick Up 26 | 9 17 Fast Attach . | . . Attach 15 | 6 9 Detach . | . . Swap 6 | . 6 Drop 9 | . 9 Fire 30 | 3 27 Melee . | . . Ram 2 | . 2 Kick . | . . Crush . | . . Escape Stasis . | . . Rewire . | . . Trap . | . . Miscellaneous . | . . Route ------- -11/Scrapyard -10/Materials History --------- Turn | Location | Event 2 | -11/Scrapyard | Met Revision 17 78 | -11/Scrapyard | Discovered new exit (range 8) 112 | -11/Scrapyard | Entered Materials 318 | -10/Materials | Build established: Mutant 318 | -10/Materials | Repaired Aluminum Leg 344 | -10/Materials | Repaired Aluminum Leg 426 | -10/Materials | Core integrity fell below 50% 434 | -10/Materials | Core integrity fell below 20% 437 | -10/Materials | Destroyed by G-34 Mercenary with Small Laser Last Messages --------------- active, melee weapons do not fire together with ranged weapons in the same volley. Targeting Computer permanently disabled. Overheating: Short circuit. Overheating: Broken Aluminum Leg damaged (-17). Overheating: Aluminum Leg damaged (-22). Overheating: Matter decay (-42). Overheating: Energy bleed (-20). Overheating: System interference. Datajack temporarily disabled. Broken Beam Cannon destroyed. Aluminum Leg destroyed. U-05 Engineer lays Concrete. Broken Lgt. Ion Engine destroyed. Broken Aluminum Leg destroyed. Slammed into G-47 Trooper. Datajack permanently disabled. Destabilizing: Short circuit. Broken Targeting Computer destroyed. R-06 Scavenger collects Wheel. Map ----- +----------------------------------------------------+ | ???????# # % / ????????????????? | | ???????# + [[ #####??????????????????? | | ?????########### !# [ % # #??????????????????? | | ?????# # # [* # #??????????????????? | | ?????# """ """ / +! # #??????????????????? | | ?????# """ """ # # !!# +??????????????????? | | ?????# """ "" " # ]]!# #??????????????????? | | ?????# # # ]]!# #??????????????????? | | ?????# # # # #??????????????????? | | ?????# "Y" # ######### #??????????????????? | | ?????# """ # #??????????????????? | | ?????########### #??????????????????? | | ????????#! """ # #??????????????????? | | ????????# "R" # #??????????????????? | | ????????# "=" + #??????????????????? | | ????????# # #??????????????????? | | ????????# ! # ######### #??????????????????? | | ????????# [% # #???????# #??????????????????? | | ????????####+### #???????# #??????????????????? | | ???????????# #?# #???????+ +??????????????????? | | ???????????# #?# #???????# #??????????????????? | | ???????????# #?# #???????# #??????????????????? | | ???????????# #?# #???????? #??????????????????? | | ?????????### ### #???????? #??????????????????? | | ?????????# ! # ######### r #??????????????????? | | ?????????# g @g %#??????????????????? | | ?????????+ g |*#??????????????????? | | ?????????# u T" #??????????????????? | | ?????????# ### #??????????????????? | | ?????????## ##?# #??????????????????? | | ??????????# #??# ag #??????????????????? | | ??????????# #??# #??????????????????? | | ??????????# #??# #??????????????????? | | ??????????# #??# #??????????????????? | | ??????????# #??# """ #??????????????????? | | ??????????# #??# """ #??????????????????? | | ?????????? #??# """ k#??????????????????? | | ?????????? ???# ? #??????????????????? | | ????????? ???# ? #??????????????????? | | ?????????#####???# ? ???????????????????? | | ?????????????????# ? ?????????????????????? | | ?????????????????? "???????????????????????????? | | ?????????????????????????????????????????????????? | | ?????????????????????????????????????????????????? | | ?????????????????????????????????????????????????? | | ?????????????????????????????????????????????????? | | ?????????????????????????????????????????????????? | | ?????????????????????????????????????????????????? | | ?????????????????????????????????????????????????? | | ?????????????????????????????????????????????????? | +----------------------------------------------------+ Best States ------------- Heat Dissipation 35 Energy Generation 10 Energy Capacity 125 Matter Stores 300 Matter Capacity 300 Sight Range 16 Terrain Scan Density 10 Evasion (%) 50 Targeting Accuracy 5 Item Schematics ----------------- None Robot Schematics ------------------ None Fabricated ------------ Nothing Alien Tech Used ----------------- None Achievements -------------- Loot Pinata Part-time Mechanic Challenges ------------ None Game ------ Seed StorageArmoredCanceller Manual? 0 Play Time 00:20:38 Cumulative 0.9 hours Start 2021.12.22 @ 23:50:27 End 2021.12.23 @ 00:20:01 Sessions 1 Manual Loads 0 Difficulty Rogue Special Mode None Game No. 3 Rogue 3 Adventurer 0 Explorer 0 Win Type - Total 0 Types 0/0/0/0/0/0/0/0/0 Lore% 1 Gallery% 3 Achievement% 3 Wizard Run 0 Options --------- ASCII 0 Keyboard 0 Movement Numpad Keybinds 0 Fullscreen 1 Font 18/SmallcapsGlow Map View 76x50 Tactical HUD 0 Map Filters NONE Filters NONE Steam 1 RUN: cc3c4a13-5ed9-4f94-9fb8-73d21179626f